bitfinex/quotes_SOLUSD_20250219
["timestamp","ask_amount","ask_price","bid_price","bid_amount"]
[1739936710308,0.03,167.58,167.46,5.18]
[1739936710597,0.03,167.58,167.47,20.8992]
[1739936710796,0.03,167.58,167.48,13.41184853]
[1739936710993,0.03,167.58,167.48,232.61184853]
[1739936711184,0.03,167.58,167.5,3.00855824]
[1739936711986,0.03,167.58,167.53,20.0]
[1739936712192,0.03,167.58,167.53,100.9]
[1739936712379,0.03,167.58,167.54,13.41184853]
[1739936712584,0.03,167.58,167.55,5.9683]
[1739936712796,0.03,167.58,167.55,86.8683]
[1739936713311,0.03,167.58,167.55,89.79408274]
[1739936713602,0.03,167.58,167.55,86.8683]
[1739936713805,0.03,167.58,167.55,5.9683]
[1739936714908,0.03,167.58,167.5,104.01365824]
[1739936714909,0.03,167.58,167.51,5.9697]
[1739936717007,0.03,167.58,167.52,13.41184853]
[1739936717176,0.03,167.58,167.51,101.7941]
[1739936718012,0.03,167.58,167.51,86.8697]
[1739936718782,0.03,167.58,167.51,101.7941]
[1739936719401,0.03,167.58,167.52,13.41184853]
[1739936719811,0.03,167.58,167.55,20.0]
[1739936720513,0.03,167.58,167.55,100.9]
[1739936720891,0.03,167.58,167.56,13.41184853]
[1739936721088,0.03,167.58,167.57,5.9676]
[1739936721294,0.03115818,167.6,167.57,86.8676]
[1739936724731,5.818e-05,167.6,167.59,5.9669]
[1739936725016,5.818e-05,167.6,167.59,19.37874853]
[1739936725523,5.818e-05,167.6,167.59,238.57874853]
[1739936726432,5.818e-05,167.6,167.59,244.55274853]
[1739936727103,0.03,167.65,167.62,20.0]
[1739936727321,0.03,167.68,167.63,13.41184853]
[1739936728121,0.03,167.68,167.63,94.31184853]
[1739936728298,0.03,167.68,167.64,20.878]
[1739936728502,0.03,167.68,167.64,101.778]
[1739936729505,0.03,167.68,167.64,107.752]
[1739936730134,0.03,167.68,167.67,3.06210741]
[1739936730613,0.03,167.68,167.67,9.02610741]
[1739936731629,0.03,167.68,167.67,89.92610741]
[1739936731817,82.7,167.76,167.67,89.92610741]
[1739936732237,82.7,167.8,167.68,13.41184853]
[1739936732457,82.7,167.8,167.68,232.61184853]
[1739936733043,82.7,167.8,167.78,73.65460338]
[1739936733529,82.7,167.79,167.78,73.65460338]
[1739936734110,96.11184853,167.79,167.78,73.65460338]
[1739936734429,96.11184853,167.79,167.78,71.98800338]
[1739936734728,102.39754853,167.79,167.78,70.32140338]
[1739936734930,102.39754853,167.79,167.75,91.82183689]
[1739936735121,20.0,167.76,167.75,91.82183689]
[1739936735503,33.41184853,167.76,167.75,91.82183689]
[1739936736712,33.41184853,167.76,167.65,5.9646]
[1739936736937,20.0,167.72,167.65,5.9646]
[1739936737508,5.08,167.75,167.65,5.9646]
[1739936738916,13.41184853,167.78,167.65,86.8646]
[1739936739238,5.08,167.77,167.65,86.8646]
[1739936739408,82.7,167.76,167.65,86.8646]
[1739936739609,82.7,167.75,167.65,86.8646]
[1739936739838,87.78,167.77,167.66,13.41184853]
[1739936740143,82.7,167.77,167.69,20.0]
[1739936740447,82.7,167.77,167.69,22.95815918]
[1739936740621,82.7,167.77,167.7,5.963]
[1739936741021,5.06,167.78,167.7,5.963]
[1739936742731,82.7,167.81,167.71,13.41184853]
[1739936742934,82.7,167.81,167.7,20.8705]
[1739936743138,82.7,167.81,167.71,13.41184853]
[1739936743540,82.7,167.83,167.75,20.0]
[1739936743720,82.7,167.83,167.75,1.5251]
[1739936744041,82.7,167.82,167.75,1.5251]
[1739936746950,82.7,167.81,167.72,6.3648]
[1739936747157,82.7,167.81,167.71,5.9623]
[1739936747452,82.7,167.8,167.71,5.9623]
[1739936748460,82.7,167.8,167.7,1.6335]
[1739936748961,82.7,167.8,167.7,7.5963]
[1739936749455,82.7,167.8,167.7,1.6335]
[1739936749632,82.7,167.8,167.7,7.5964]
[1739936750147,82.7,167.79,167.7,7.5964]
[1739936752358,20.0,167.75,167.7,1.6335]
[1739936752542,107.74,167.75,167.67,6.0652]
[1739936753159,19.59998793,167.74,167.67,25.66518793]
[1739936753457,19.59998793,167.74,167.67,31.62918793]
[1739936753659,127.33998793,167.75,167.68,19.59998793]
[1739936754355,19.59998793,167.73,167.67,25.66518793]
[1739936754569,19.59998793,167.73,167.67,19.66298793]
[1739936755067,127.33998793,167.75,167.68,19.59998793]
[1739936755571,127.33998793,167.75,167.68,25.56358793]
[1739936755857,107.74,167.75,167.7,19.59998793]
[1739936756244,25.04,167.75,167.7,19.59998793]
[1739936756775,5.04,167.75,167.72,19.59998793]
[1739936756976,82.7,167.77,167.72,19.59998793]
[1739936757646,82.7,167.77,167.72,25.56228793]
[1739936758351,24.61998793,167.8,167.74,19.59998793]
[1739936758765,5.02,167.8,167.74,19.59998793]
[1739936759336,24.61998793,167.8,167.73,19.59998793]
[1739936759553,24.61998793,167.8,167.73,25.56178793]
[1739936759938,24.61998793,167.8,167.73,19.59998793]
[1739936760256,19.59998793,167.76,167.72,0.063]
[1739936760644,19.59998793,167.77,167.72,0.063]
[1739936761762,19.59998793,167.78,167.72,19.66298793]
[1739936762257,102.29998793,167.79,167.72,19.66298793]
[1739936762464,82.7,167.79,167.75,19.59998793]
[1739936762667,82.7,167.79,167.75,12.23957282]
[1739936763137,94.93957282,167.79,167.73,12.23957282]
[1739936763340,94.93957282,167.79,167.72,6.2384]
[1739936763341,12.23957282,167.78,167.72,6.2384]
[1739936763868,12.23957282,167.78,167.72,18.47797282]
[1739936764372,94.96957282,167.85,167.77,12.23957282]
[1739936764658,12.23957282,167.83,167.77,12.23957282]
[1739936764859,12.23957282,167.84,167.77,12.23957282]
[1739936765161,82.73,167.85,167.8,12.23957282]
[1739936765340,0.03,167.85,167.8,12.23957282]
[1739936766367,0.03,167.85,167.8,18.19897282]
[1739936766563,0.03,167.85,167.8,25.52992539]
[1739936766871,0.03,167.85,167.81,19.57052539]
[1739936767472,0.03,167.85,167.82,19.57052539]
[1739936769671,0.03,167.85,167.82,25.52922539]
[1739936770259,0.03,167.85,167.83,19.57052539]
[1739936770579,0.03,167.85,167.84,19.57052539]
[1739936771755,0.03,167.85,167.84,25.52852539]
[1739936774071,0.03,167.85,167.83,6.488]
[1739936774389,0.03,167.85,167.81,19.57052539]
[1739936775262,0.03,167.85,167.78,6.488]
[1739936775263,19.60052539,167.85,167.78,26.05852539]
[1739936775474,19.57052539,167.84,167.77,25.53102539]
[1739936775667,19.57052539,167.84,167.78,19.57052539]
[1739936776457,19.60052539,167.85,167.79,19.57052539]
[1739936776787,0.03,167.85,167.8,19.57052539]
[1739936778261,0.03,167.85,167.8,25.52992539]
[1739936778780,0.03,167.85,167.84,19.57052539]
[1739936779182,0.03,167.85,167.83,19.57052539]
[1739936779486,0.03,167.85,167.8,19.57052539]
[1739936780162,0.03,167.85,167.8,25.52992539]
[1739936781189,0.03,167.85,167.81,19.57052539]
[1739936782281,0.03,167.85,167.81,25.52952539]
[1739936782685,0.03,167.85,167.83,19.57052539]
[1739936783578,0.03,167.85,167.82,19.57052539]
[1739936784362,0.03,167.85,167.82,25.52902539]
[1739936785187,0.03,167.85,167.82,19.57052539]
[1739936786178,0.03,167.85,167.82,25.52922539]
[1739936786675,0.03,167.85,167.82,18.18773825]
[1739936787192,0.03,167.85,167.83,25.64088678]
[1739936787787,0.03,167.85,167.83,12.22903825]
[1739936788988,0.03,167.85,167.84,25.64088678]
[1739936791095,0.03,167.85,167.84,31.59888678]
[1739936796586,0.03,167.85,167.84,37.57288678]
[1739936796790,0.03,167.85,167.84,31.59888678]
[1739936797001,0.03,167.85,167.84,34.57822989]
[1739936798485,0.03,167.85,167.84,115.47822989]
[1739936799403,0.03,167.85,167.84,123.52002989]
[1739936800394,0.03,167.85,167.84,274.04906814]
[1739936800583,0.03,167.85,167.84,261.82002989]
[1739936803784,0.03,167.85,167.84,123.52002989]
[1739936806695,0.03,167.85,167.84,119.11187893]
[1739936806890,0.03,167.85,167.84,112.61817893]
[1739936811196,0.03,167.85,167.84,120.43906593]
[1739936814120,0.03,167.85,167.84,126.41406593]
[1739936814725,0.0001,167.85,167.84,282.20172809]
[1739936815400,0.0001,167.85,167.84,288.17672809]
[1739936816802,0.07158349,167.92,167.88,13.41184853]
[1739936817015,0.07158349,167.92,167.91,21.23273582]
[1739936818201,0.07158349,167.92,167.91,7.82088729]
[1739936819417,0.07158349,167.92,167.88,88.72088729]
[1739936819829,0.07158349,167.92,167.88,7.82088729]
[1739936820220,0.07158349,167.92,167.88,21.23273582]
[1739936820525,0.07158349,167.92,167.88,7.82088729]
[1739936820726,7.89247078,167.92,167.86,7.82088729]
[1739936820940,7.89247078,167.92,167.85,21.23273582]
[1739936821326,7.82088729,167.89,167.83,7.82088729]
[1739936821512,7.82088729,167.89,167.84,13.41184853]
[1739936821717,7.82088729,167.9,167.84,21.23273582]
[1739936821920,7.82088729,167.89,167.84,13.41184853]
[1739936822227,7.82088729,167.9,167.84,7.82088729]
[1739936822416,90.52088729,167.91,167.84,7.82088729]
[1739936822928,90.52088729,167.91,167.84,21.23273582]
[1739936823313,82.7,167.91,167.86,7.82088729]
[1739936823501,82.7,167.91,167.86,13.77818729]
[1739936823717,0.07158349,167.92,167.86,13.77818729]
[1739936823718,0.07158349,167.92,167.89,7.82088729]
[1739936824519,0.07158349,167.92,167.91,21.23273582]
[1739936825125,0.07158349,167.92,167.89,7.82088729]
[1739936825907,0.07158349,167.92,167.88,30.1168776]
[1739936826312,0.07158349,167.92,167.89,7.82088729]
[1739936826524,0.07158349,167.92,167.91,7.82088729]
[1739936826920,8.349e-05,167.92,167.91,102.13273582]
[1739936827607,8.349e-05,167.92,167.91,108.08823582]
[1739936828020,8.349e-05,167.92,167.91,246.38823582]
[1739936828419,0.03,167.95,167.94,20.0]
[1739936828622,0.03,168.02,167.94,252.61184853]
[1739936829035,0.03,168.02,167.95,13.41184853]
[1739936829423,0.03,168.02,167.97,21.23273582]
[1739936830126,7.82088729,167.99,167.94,219.2]
[1739936830333,7.82088729,167.99,167.93,13.77558729]
[1739936830518,82.7,168.01,167.97,13.41184853]
[1739936830712,82.7,168.01,167.97,12.20784672]
[1739936831427,82.7,168.01,167.96,12.20784672]
[1739936831736,12.20784672,168.0,167.93,15.13965239]
[1739936831936,0.03,167.95,167.94,13.41184853]
[1739936832123,0.03,167.95,167.92,12.20784672]
[1739936832324,0.03,167.95,167.91,93.10784672]
[1739936832511,0.03,167.95,167.9,12.20784672]
[1739936832838,0.03,167.95,167.91,13.41184853]
[1739936833037,0.03,167.95,167.91,25.61969525]
[1739936833212,0.03,167.95,167.91,13.41184853]
[1739936833814,0.03,167.95,167.91,25.61969525]
[1739936834015,0.03,167.95,167.92,12.20784672]
[1739936835049,0.03,167.95,167.93,12.20784672]
[1739936835254,0.03,167.95,167.94,12.20784672]
[1739936835615,0.03,167.95,167.94,18.16234672]
[1739936835924,0.03,167.95,167.94,112.47419525]
[1739936836537,0.03,167.95,167.94,106.51969525]
[1739936836720,0.03,167.95,167.91,5.9555]
[1739936837269,0.03,167.95,167.9,102.02025871]
[1739936837616,0.03,167.95,167.91,12.20784672]
[1739936837825,0.03,167.95,167.94,13.41184853]
[1739936838347,0.03,167.95,167.92,25.61969525]
[1739936838728,0.03,167.95,167.94,13.41184853]
[1739936840152,0.03,167.95,167.94,31.57419525]
[1739936840349,0.03,167.95,167.94,13.41184853]
[1739936841426,0.03,167.95,167.94,31.57419525]
[1739936844216,0.03,167.95,167.94,31.63719525]
[1739936845355,0.03,167.95,167.94,112.53719525]
[1739936850856,0.03,167.95,167.94,100.32934853]
[1739936851042,0.03,167.95,167.94,108.14131427]
[1739936853154,0.09766612,167.98,167.94,155.78827723]
[1739936853459,0.09766612,167.98,167.97,21.22381427]
[1739936854245,6.612e-05,167.98,167.97,21.22381427]
[1739936854867,6.612e-05,167.98,167.97,27.17721427]
[1739936855244,6.612e-05,167.98,167.97,30.11068661]
[1739936856069,0.03006612,167.98,167.97,30.11068661]
[1739936856948,0.03006612,167.98,167.97,111.01068661]
[1739936860471,0.03006612,167.98,167.97,103.19872087]
[1739936860647,0.03006612,167.98,167.97,111.01068661]
[1739936864752,0.03006612,167.98,167.97,102.12381427]
[1739936864946,0.03006612,167.98,167.96,7.81196574]
[1739936865167,0.03006612,167.98,167.95,13.76576574]
[1739936865353,0.03006612,167.98,167.96,21.22381427]
[1739936869450,0.03006612,167.98,167.96,21.33571658]
[1739936869768,0.03006612,167.98,167.96,0.11190231]
[1739936871183,7.84203186,167.98,167.96,0.11190231]
[1739936871360,0.03006612,167.98,167.96,0.11190231]
[1739936873369,0.03006612,167.98,167.96,7.92386805]
[1739936874683,0.03006612,167.98,167.96,13.87756805]
[1739936875283,0.03006612,167.98,167.96,7.92386805]
[1739936876592,0.03006612,167.98,167.96,0.11190231]
[1739936877954,0.03006612,167.98,167.96,13.52375084]
[1739936878576,0.03006612,167.98,167.96,0.11190231]
[1739936881485,0.03006612,167.98,167.96,13.52375084]
[1739936882383,0.03006612,167.98,167.96,0.11190231]
[1739936884386,0.03006612,167.98,167.96,7.92386805]
[1739936884684,0.03006612,167.98,167.97,28.74341427]
[1739936884895,0.03,168.02,168.01,21.22381427]
[1739936885077,0.03,168.05,168.04,21.22381427]
[1739936885464,0.03,168.05,168.04,102.12381427]
[1739936885782,0.03,168.05,168.04,104.50900427]
[1739936885986,0.03,168.05,168.04,102.12381427]
[1739936886575,0.03,168.05,168.04,108.07471427]
[1739936887883,0.03,168.08,168.05,15.05324853]
[1739936888067,0.03,168.08,168.07,7.81196574]
[1739936889982,0.03,168.08,168.04,10.79908903]
[1739936890184,0.03,168.08,168.04,7.81196574]
[1739936890565,0.03,168.08,168.06,7.81196574]
[1739936891687,0.03,168.08,168.07,7.81196574]
[1739936891883,0.03,168.08,168.07,21.22381427]
[1739936892078,0.03,168.08,168.07,27.17371427]
[1739936894587,0.03,168.08,168.07,21.22381427]
[1739936894977,0.03,168.08,168.07,27.17371427]
[1739936895390,0.03,168.08,168.07,34.96021427]
[1739936895874,0.03,168.08,168.07,9.41426574]
[1739936896279,0.03,168.08,168.07,22.82611427]
[1739936897306,0.03,168.08,168.07,28.77601427]
[1739936897999,0.03,168.08,168.04,5.9509]
[1739936898300,0.03,168.08,168.02,7.81196574]
[1739936898802,7.84196574,168.08,168.02,7.81196574]
[1739936900394,0.03,168.08,168.05,7.81196574]
[1739936900597,0.03,168.08,168.01,5.9517]
[1739936900598,0.03,168.08,168.06,12.19474159]
[1739936900819,0.03,168.08,168.04,12.19474159]
[1739936901116,0.03,168.08,168.05,12.19474159]
[1739936901800,0.03,168.08,168.07,25.60659012]
[1739936901990,0.03,168.08,168.07,27.23689012]
[1739936902588,0.03,168.08,168.07,25.60659012]
[1739936903390,0.03,168.08,168.07,31.55649012]
[1739936903579,0.03,168.08,168.07,25.60659012]
[1739936903781,0.03,168.08,168.03,82.5303]
[1739936903984,0.03,168.08,168.06,12.19474159]
[1739936904185,0.03,168.08,168.07,12.19474159]
[1739936904604,0.03,168.08,168.03,85.47090287]
[1739936904903,0.03,168.08,168.06,12.19474159]
[1739936905094,0.03,168.08,168.05,12.19474159]
[1739936905493,0.03,168.08,168.04,12.19474159]
[1739936909506,0.03,168.08,168.05,12.19474159]
[1739936910790,0.03,168.08,168.07,12.19474159]
[1739936912299,0.03,168.08,168.07,18.14464159]
[1739936912507,0.03,168.08,168.07,31.55649012]
[1739936914800,0.03,168.08,168.05,0.063]
[1739936915218,0.03,168.08,168.05,12.25774159]
[1739936916224,0.03,168.08,168.06,12.19474159]
[1739936917427,0.03,168.08,168.06,18.14494159]
[1739936917608,0.03,168.08,168.07,12.19474159]
[1739936917815,0.03,168.08,168.07,25.60659012]
[1739936919428,0.03,168.08,168.07,31.55649012]
[1739936920734,0.03,168.08,168.07,12.19474159]
[1739936920902,0.03,168.08,168.06,12.19474159]
[1739936921098,0.03,168.08,168.05,12.25774159]
[1739936921832,12.19474159,168.06,168.05,0.063]
[1739936922337,88.9777,168.07,168.05,0.063]
[1739936922849,101.17244159,168.07,168.05,0.063]
[1739936924435,12.19474159,168.06,168.05,0.063]
[1739936924826,13.19474159,168.06,168.05,0.063]
[1739936925041,12.19474159,168.06,168.05,0.063]
[1739936925867,15.23216029,168.06,168.05,0.063]
[1739936926738,3.0374187,168.06,168.05,0.063]
[1739936926956,35.23216029,168.06,168.05,0.063]
[1739936929564,49.64400882,168.06,168.05,0.063]
[1739936929988,21.0,168.03,168.02,0.063]
[1739936930207,50.04948318,168.03,168.02,0.063]
[1739936930365,51.04948318,168.03,168.02,0.063]
[1739936930693,37.85474159,168.03,168.02,0.063]
[1739936930865,38.85474159,168.03,168.02,0.063]
[1739936931281,37.85474159,168.03,168.02,0.063]
[1739936931481,38.85474159,168.03,168.02,0.063]
[1739936932297,51.26659012,168.03,168.02,0.063]
[1739936932488,50.26659012,168.03,168.02,0.063]
[1739936932901,51.26659012,168.03,168.02,0.063]
[1739936933263,50.26659012,168.03,168.02,0.063]
[1739936934488,36.85474159,168.03,168.02,0.063]
[1739936934693,16.85474159,168.03,168.02,0.063]
[1739936937388,36.85474159,168.03,168.02,0.063]
[1739936937579,16.85474159,168.03,168.02,0.063]
[1739936940094,30.26659012,168.03,168.02,0.063]
[1739936940895,16.85474159,168.03,168.02,0.063]
[1739936943996,30.26659012,168.03,168.02,0.063]
[1739936944684,16.85474159,168.03,168.02,0.063]
[1739936946399,21.0,167.99,167.96,0.063]
[1739936946585,12.19474159,167.95,167.94,0.063]
[1739936946775,16.81474159,167.95,167.94,0.063]
[1739936949794,19.73891884,167.95,167.94,0.063]
[1739936950186,34.15076737,167.95,167.94,0.063]
[1739936950789,35.15076737,167.95,167.94,0.063]
[1739936951583,34.15076737,167.95,167.94,0.063]
[1739936952602,30.78019543,167.95,167.94,0.063]
[1739936953406,62.07687403,167.95,167.94,0.063]
[1739936955004,30.78019543,167.95,167.94,0.063]
[1739936955378,21.0,167.91,167.88,0.063]
[1739936955595,7.82416965,167.89,167.88,0.063]
[1739936955813,12.42416965,167.89,167.88,0.063]
[1739936956702,14.42416965,167.89,167.88,0.063]
[1739936956920,1.0,167.82,167.77,1.6044]
[1739936957217,42.23601818,167.8,167.77,0.063]
[1739936957513,27.82416965,167.8,167.77,0.063]
[1739936958080,42.23601818,167.8,167.77,0.063]
[1739936958715,46.6601455,167.8,167.77,0.063]
[1739936958876,47.6601455,167.8,167.77,0.063]
[1739936959214,46.6601455,167.8,167.77,0.063]
[1739936959783,36.86829697,167.8,167.77,0.063]
[1739936961483,20.0,167.8,167.77,0.063]
[1739936961787,20.0,167.8,167.77,12.31129697]
[1739936963391,4.62,167.81,167.77,0.063]
[1739936963594,12.24829697,167.8,167.77,0.063]
[1739936963987,26.6601455,167.8,167.77,0.063]
[1739936965011,27.6601455,167.8,167.77,0.063]
[1739936967283,1.0,167.75,167.72,0.063]
[1739936967490,12.24829697,167.73,167.72,0.063]
[1739936967930,27.6601455,167.73,167.72,0.063]
[1739936968089,22.0,167.69,167.68,0.063]
[1739936968411,15.41184853,167.68,167.67,0.063]
[1739936968590,44.54844247,167.68,167.67,0.063]
[1739936968982,47.00081344,167.68,167.67,0.063]
[1739936969402,12.24829697,167.63,167.59,1.5346]
[1739936969818,20.0,167.64,167.59,1.5346]
[1739936970025,20.0,167.63,167.6,12.24829697]
[1739936970223,4.64,167.65,167.62,12.31129697]
[1739936970428,4.64,167.68,167.62,12.31129697]
[1739936970641,4.64,167.69,167.65,12.24829697]
[1739936970804,4.64,167.69,167.67,13.85969697]
[1739936972126,4.64,167.69,167.67,1.6114]
[1739936973001,4.64,167.69,167.67,21.21796916]
[1739936973401,4.64,167.69,167.67,1.6114]
[1739936973709,4.64,167.69,167.67,21.21796916]
[1739936974732,4.64,167.69,167.67,1.6114]
[1739936974945,102.7,167.68,167.67,1.6114]
[1739936975238,4.64,167.69,167.67,1.6744]
[1739936976235,102.7,167.68,167.67,1.6744]
[1739936976409,122.30656916,167.68,167.67,0.063]
[1739936976614,40.60656916,167.68,167.67,0.063]
[1739936976841,55.01841769,167.68,167.67,0.063]
[1739936980054,39.60656916,167.68,167.67,0.063]
[1739936980221,39.60656916,167.68,167.63,1.197]
[1739936980754,82.7,167.67,167.63,1.197]
[1739936982326,82.7,167.66,167.63,1.197]
[1739936982522,82.7,167.66,167.65,19.60656916]
[1739936983530,82.7,167.7,167.66,6.3292]
[1739936983731,82.7,167.7,167.68,19.60656916]
[1739936984628,82.7,167.7,167.69,19.60656916]
[1739936987138,82.7,167.7,167.67,0.063]
[1739936987344,87.34,167.69,167.67,0.063]
[1739936987644,82.7,167.68,167.67,0.063]
[1739936987947,24.24656916,167.69,167.67,0.063]
[1739936988935,4.64,167.69,167.67,0.063]
[1739936989449,19.60656916,167.68,167.67,0.063]
[1739936989748,24.24656916,167.69,167.67,0.063]
[1739936991453,4.64,167.69,167.67,0.063]
[1739936994350,0.03,167.7,167.67,0.063]
[1739936994750,0.03,167.7,167.67,19.66956916]
[1739936995955,0.03,167.7,167.67,0.063]
[1739936996456,0.03,167.7,167.67,19.66956916]
[1739936997351,0.03,167.7,167.68,19.60656916]
[1739936997542,0.03,167.7,167.69,19.60656916]
[1739936999253,0.03,167.7,167.69,27.12116916]
[1739936999437,0.03,167.7,167.69,46.69621769]
[1739936999851,87.3,167.77,167.7,13.41184853]
[1739937000032,82.7,167.76,167.72,19.60656916]
[1739937000238,82.7,167.76,167.71,19.60656916]
[1739937000436,82.7,167.76,167.72,19.60656916]
[1739937000745,82.7,167.76,167.71,19.60656916]
[1739937002177,82.7,167.76,167.73,19.60656916]
[1739937002684,82.7,167.76,167.74,19.60656916]
[1739937003259,82.7,167.76,167.75,19.60656916]
[1739937004590,82.7,167.81,167.78,13.41184853]
[1739937004765,87.3,167.84,167.8,12.23362247]
[1739937004966,82.7,167.84,167.81,12.23362247]
[1739937005490,82.7,167.86,167.82,12.23362247]
[1739937005785,82.7,167.86,167.83,12.23362247]
[1739937006694,82.7,167.86,167.83,19.56610789]
[1739937007592,0.03,167.87,167.85,19.56610789]
[1739937007887,0.03,167.87,167.84,19.56610789]
[1739937008378,0.03,167.87,167.85,19.56610789]
[1739937008567,0.03,167.87,167.86,19.56610789]
[1739937009165,0.03,167.87,167.86,32.97795642]
[1739937009592,0.03,167.87,167.86,19.56610789]
[1739937009772,0.03,167.87,167.85,25.59370789]
[1739937010179,0.03,167.87,167.86,19.56610789]
[1739937010403,0.03,167.87,167.86,38.93525642]
[1739937012282,0.03,167.89,167.87,13.41184853]
[1739937012471,0.03,167.89,167.88,19.56610789]
[1739937013371,0.03,167.89,167.88,38.93455642]
[1739937014076,0.03,167.89,167.88,32.97795642]
[1739937014274,0.03,167.89,167.88,19.56610789]
[1739937015876,0.03,167.89,167.88,38.93455642]
[1739937016279,0.03,167.89,167.88,19.56610789]
[1739937016477,0.03,167.89,167.88,39.56610789]
[1739937018399,0.03,167.89,167.85,25.59370789]
[1739937018595,0.03,167.89,167.86,19.56610789]
[1739937019203,0.03,167.89,167.87,19.56610789]
[1739937019405,0.03,167.89,167.88,19.56610789]
[1739937019574,102.26610789,168.01,167.94,19.56610789]
[1739937019774,82.7,168.0,167.94,19.56610789]
[1739937020000,82.7,168.0,167.95,19.56610789]
[1739937020989,82.7,167.99,167.95,19.56610789]
[1739937021406,82.7,167.99,167.96,19.56610789]
[1739937021701,82.7,167.99,167.97,19.56610789]
[1739937021998,82.7,167.99,167.96,19.56610789]
[1739937023999,82.7,167.99,167.97,19.56610789]
[1739937024585,82.7,168.03,167.98,19.56610789]
[1739937024999,0.03,167.99,167.98,19.56610789]
[1739937025402,0.03,167.99,167.98,38.93095642]
[1739937025588,0.03,167.99,167.98,32.97795642]
[1739937025787,0.03,167.99,167.98,19.56610789]
[1739937026904,0.03,167.99,167.98,25.51910789]
[1739937028401,0.03,167.99,167.98,38.93095642]
[1739937028578,0.03,167.99,167.98,31.56731915]
[1739937029919,0.03,167.99,167.98,34.55270598]
[1739937035114,0.03,167.99,167.98,25.61431915]
[1739937035319,0.03,167.99,167.98,12.20247062]
[1739937037616,0.03,167.99,167.98,31.56731915]
[1739937038694,0.03,167.99,167.98,25.61431915]
[1739937038898,0.03,167.99,167.98,12.20247062]
[1739937039117,0.03,167.99,167.96,1.6041]
[1739937039300,0.03,167.99,167.95,12.20247062]
[1739937039606,0.03,167.99,167.94,12.20247062]
[1739937039806,82.7,167.98,167.94,12.20247062]
[1739937040020,82.7,167.98,167.95,12.20247062]
[1739937040216,82.7,167.98,167.96,12.20247062]
[1739937041015,82.7,167.98,167.92,13.41184853]
[1739937041016,82.7,167.98,167.97,12.20247062]
[1739937041403,82.7,167.98,167.96,12.20247062]
[1739937041726,82.7,167.98,167.95,12.20247062]
[1739937042195,82.7,167.98,167.94,12.20247062]
[1739937043119,82.7,167.98,167.96,12.20247062]
[1739937043299,82.7,167.98,167.95,12.20247062]
[1739937044009,82.7,167.98,167.96,12.20247062]
[1739937045507,82.7,167.98,167.95,12.20247062]
[1739937046811,82.7,167.98,167.96,12.20247062]
[1739937047432,0.03,167.99,167.96,12.20247062]
[1739937047614,0.03,167.99,167.97,12.20247062]
[1739937048109,0.03,167.99,167.96,12.20247062]
[1739937048606,0.03,167.99,167.95,12.20247062]
[1739937048921,0.03,167.99,167.94,12.20247062]
[1739937049969,0.03,167.99,167.96,12.20247062]
[1739937050242,0.03,167.99,167.95,12.20247062]
[1739937052804,0.03,167.99,167.94,12.20247062]
[1739937053127,0.03,167.99,167.93,12.20247062]
[1739937053316,82.7,167.98,167.93,12.20247062]
[1739937054255,82.7,167.98,167.94,12.20247062]
[1739937055358,82.7,167.98,167.93,12.20247062]
[1739937056246,82.7,167.97,167.93,12.20247062]
[1739937056543,94.90247062,167.97,167.9,12.20247062]
[1739937056725,87.26,167.96,167.9,12.20247062]
[1739937057165,87.26,167.96,167.91,12.20247062]
[1739937057824,87.26,167.96,167.94,12.20247062]
[1739937058022,87.26,167.96,167.95,12.20247062]
[1739937058253,82.7,167.96,167.95,12.20247062]